[Event "German Masters 2022"]
[Site "Magdeburg"]
[Date "2022.08.22"]
[Round "7.2"]
[White "Svane, Frederik"]
[Black "Fridman, Daniel"]
[Result "1-0"]
[ECO "C10"]
[WhiteElo "2521"]
[BlackElo "2599"]
[Annotator "TA"]
[PlyCount "75"]
[EventDate "2022.08.16"]
[EventType "tourn"]
[EventCountry "GER"]
[SourceTitle "playchess.com"]
[Source "ChessBase"]
[SourceQuality "1"]
[TimeControl "40/5400+30:1800+30"]

{[%evp 14,75,41,38,45,42,32,31,53,45,53,31,35,33,38,19,17,16,45,30,44,61,45,47,86,91,79,83,68,75,187,188,187,193,187,141,137,120,129,157,150,150,164,171,138,122,100,109,801,794,985,917,730,598,29990,29991,29991,150,829,154,250,244,29995,29996]} 1. e4 {[%emt 0:00:03]} e6 {[%emt 0:01:44]} 2. d4 {[%emt 0:00:09]} d5 {[%emt 0:00:35]} 3. Nc3 {[%emt 0:00:04]} dxe4 {[%emt 0:03:09]} 4. Nxe4 {[%emt 0:00:06]} Bd7 {[%emt 0:00:03]} 5. Nf3 {[%emt 0:00:26]} Bc6 {[%emt 0:00:06]} 6. Bd3 {[%emt 0:00:07]} Nd7 {[%emt 0:00:05]} 7. O-O {[%emt 0:00:26]} Ngf6 {[%emt 0:00:21]} 8. Ng3 {[%emt 0:00:25]} g6 {[%emt 0:00:26] C10: French with 3 Nc3: Unusual Black 3rd moves and 3...dxe4.} 9. b3 {[%emt 0:05:27]} Bg7 {[%emt 0:00:27]} 10. Ba3 {[%emt 0:01:21]} Bf8 {[%emt 0:00:05] White is slightly better.} 11. Bb2 {[%emt 0:00:13]} Bg7 {[%emt 0:00:05]} 12. c4 {[%emt 0:05:31][%cal Od4d5]} O-O {[%emt 0:00:06]} 13. Re1 {[%emt 0:02:08]} a5 {[%emt 0:04:48] [#]} 14. a4 $146 {[%emt 0:07:16]} ({Predecessor:} 14. a3 b6 15. Qe2 Bb7 16. Rad1 Re8 17. h4 Qe7 18. h5 Rad8 19. hxg6 hxg6 20. Bc2 {1-0 (30) Cheparinov,I (2700)-Tratar,M (2498) Legnica 2013}) 14... b6 {[%emt 0:01:18]} 15. Qe2 {[%emt 0:02:13]} Qb8 {[%emt 0:10:09]} 16. Ne5 {[%emt 0:20:51]} Nxe5 {[%emt 0:00:58]} 17. dxe5 {[%emt 0:00:04]} Nd7 {[%emt 0:00:28]} 18. Be4 {[%emt 0:07:05]} Qb7 {[%emt 0:24:05]} 19. Qf3 $1 {[%emt 0:06:35]} Bxe4 {[%emt 0:00:09]} 20. Nxe4 {[%emt 0:00:07] Nf6+ is the strong threat.} Nc5 {[%emt 0:04:58]} 21. Ba3 $1 {[%emt 0:02:45]} Rfb8 {[%emt 0:08:13]} (21... Bxe5 $2 22. Bxc5 c6 23. Bxf8 Bxa1 24. Rxa1 $18) (21... Nxe4 $16 {might work better.} 22. Bxf8 (22. Rxe4 c5 $11) (22. Qxe4 Qxe4 23. Rxe4 Rfd8 $15) 22... Bxe5) 22. Bxc5 $18 {[%emt 0:01:43]} bxc5 {[%emt 0:00:06]} 23. Rad1 $1 {[%emt 0:00:47] Threatens to win with Rd7.} (23. Nxc5 Qxf3 24. gxf3 Bf8 $15) (23. Qf4 Qxb3 24. Nxc5 Qc2 $11) 23... Qb4 {[%emt 0:06:14]} 24. Nf6+ {[%emt 0:02:35]} ({Don't play} 24. Ng5 $6 Rf8 $14) ({White should try} 24. Kf1 $18) 24... Bxf6 $16 {[%emt 0:12:06]} 25. exf6 {[%emt 0:00:02] And now Qe3 would win.} Ra6 {[%emt 0:00:20]} 26. Qf4 {[%emt 0:21:27] White is much more active.} e5 {[%emt 0:00:24]} 27. Rxe5 {[%emt 0:00:09]} (27. Qxe5 $6 Re6 28. Qa1 Rxe1+ 29. Rxe1 Qxb3 $11) 27... Qxb3 {[%emt 0:02:34]} 28. Rde1 {[%emt 0:01:52]} Qxa4 {[%emt 0:00:37]} 29. h4 $40 {[%emt 0:03:45][%cal Bh2h4,Bh4h5][%mdl 160] White wants a kill.} ({Weaker is} 29. Rxc5 Re6 30. Rf1 Qe8 $11) 29... Rf8 {[%emt 0:12:34]} 30. h5 {[%emt 0:05:48][%mdl 1024] White has strong compensation.} ({Much worse is} 30. Rxc5 $6 Qb4 31. Rce5 Qd6 $11) 30... Qc6 $2 {[%emt 0:01:22][%mdl 8192] [#]} (30... Rd6 $16) 31. Rf5 $3 $18 {[%emt 0:00:41][%mdl 512]} Re8 {[%emt 0:01:17] [#]} (31... Qd6 32. Qh6) 32. Rd1 $1 {[%emt 0:01:51] aiming for hxg6.} Qa4 {[%emt 0:03:03]} 33. Rfd5 {[%emt 0:00:16]} Rd6 {[%emt 0:00:24]} 34. Rxd6 {[%emt 0:01:48]} cxd6 {[%emt 0:00:02] [#]} 35. Rxd6 $2 {[%emt 0:00:19]} (35. Rb1 $1 {mates} Kh8 36. Qh6 Rg8 37. hxg6 fxg6 38. f7 Qa3 39. f8=Q Qc3 40. Qf7 Qg7 41. Qhxg7+ Rxg7 42. Rb8+ Rg8 43. Rxg8#) 35... Qa2 $2 {[%emt 0:03:32] [#]} (35... Qa1+ $16 36. Kh2 Qb2) 36. Kh2 $2 {[%emt 0:01:24]} (36. g3 $1 $18 {Qh6 would kill now.} Qb1+ 37. Kg2 Qb7+ 38. Kh2) 36... Qe2 {[%emt 0:00:53]} (36... Qb2 $16 37. hxg6 hxg6) 37. Rd5 {[%emt 0:00:34] Threatening mate with Qh6.} Qe4 $2 {[%emt 0:00:43]} (37... Qb2 $18 38. Rxc5 Qb8 39. Qxb8 Rxb8 40. Rxa5 h6 41. hxg6 fxg6) 38. Qxe4 {[%emt 0:00:05] Weighted Error Value: White=0.57/Black=0.81} 1-0

[Event "German Masters 2022"]
[Site "Magdeburg"]
[Date "2022.08.22"]
[Round "7.3"]
[White "Braun, Arik"]
[Black "Engel, Luis"]
[Result "0-1"]
[ECO "E20"]
[WhiteElo "2594"]
[BlackElo "2558"]
[Annotator "TA"]
[PlyCount "100"]
[EventDate "2022.08.16"]
[EventType "tourn"]
[EventCountry "GER"]
[SourceTitle "playchess.com"]
[Source "ChessBase"]
[SourceQuality "1"]
[TimeControl "40/5400+30:1800+30"]

{[%evp 17,100,-8,31,25,29,25,18,31,23,28,30,8,27,35,33,-4,-12,0,0,0,0,-30,-32,-31,-31,-36,10,13,50,45,54,59,62,-24,115,113,114,118,148,57,114,0,0,0,0,0,0,0,38,16,65,18,40,0,8,-62,-41,-81,-61,-70,-81,-167,-108,-164,-135,-212,-181,-172,-169,-377,-362,-375,-374,-368,-364,-407,-440,-735,-720,-764,-717,-737,-648,-624,-591]} 1. d4 {[%emt 0:00:04]} Nf6 {[%emt 0:00:04]} 2. c4 {[%emt 0:00:04]} e6 {[%emt 0:00:04]} 3. Nc3 {[%emt 0:00:04]} Bb4 {[%emt 0:00:05]} 4. Bd2 {[%emt 0:00:04]} d5 {[%emt 0:03:45]} 5. e3 {[%emt 0:00:17]} O-O {[%emt 0:00:18]} 6. Nf3 {[%emt 0:00:13]} b6 {[%emt 0:01:22]} 7. cxd5 {[%emt 0:01:29]} exd5 {[%emt 0:00:06]} 8. Bd3 {[%emt 0:00:14]} Bb7 {[%emt 0:05:37]} 9. O-O {[%emt 0:00:45]} a6 {[%emt 0:00:34]} 10. Ne5 {[%emt 0:02:08] E52: Nimzo-Indian: Rubinstein: 4...0-0 5 Nf3 d5 6 Bd3 b6.} Bd6 {[%emt 0:00:07]} 11. f4 {[%emt 0:01:25]} c5 {[%emt 0:00:06]} 12. Be1 {[%emt 0:01:13] The position is equal.} Nc6 {[%emt 0:08:03]} 13. Bf2 {[%emt 0:02:43] [#]} b5 $146 {[%emt 0:06:18]} ({Predecessor:} 13... Nb4 14. Bb1 Rc8 15. Qf3 Rc7 16. a3 Nc6 17. g4 Na5 18. g5 Ne4 19. Nxe4 dxe4 20. Bxe4 Bxe4 21. Qxe4 cxd4 22. exd4 {1-0 (50) Li,C (2732)-Zeng,C (2539) China 2018}) 14. Rc1 {[%emt 0:06:10]} c4 {[%emt 0:08:36]} 15. Bb1 {[%emt 0:00:54]} b4 {[%emt 0:00:07]} 16. Ne2 {[%emt 0:02:39]} (16. Na4 $5 {[%cal Rf2h4]}) 16... a5 {[%emt 0:05:44]} 17. Bh4 {[%emt 0:07:01] [#] Black must now prevent Ng3.} Be7 {[%emt 0:03:07]} 18. Ng3 {[%emt 0:02:05] Threatens to win with Nf5.} Ne8 {[%emt 0:04:46]} 19. Bxe7 {[%emt 0:20:03]} (19. Qc2 $5 {[%cal Rc2h7]} g6 20. Bxe7 Qxe7 21. e4 $15) 19... Nxe7 {[%emt 0:00:28]} 20. Qh5 {[%emt 0:05:22][%csl Gb1][%cal Rh5h7]} Nf6 {[%emt 0:10:46]} 21. Qf3 {[%emt 0:01:51]} Qb6 {[%emt 0:14:20]} (21... a4 $15) 22. Nh5 $11 {[%emt 0:06:03]} Nxh5 {[%emt 0:07:17]} 23. Qxh5 {[%emt 0:00:12][%csl Gb1][%cal Rh5h7]} Qh6 {[%emt 0:01:15]} 24. Qxh6 {[%emt 0:09:56]} gxh6 {[%emt 0:00:05]} 25. Rf3 {[%emt 0:01:35]} (25. f5 $14) 25... f6 {[%emt 0:04:10]} (25... Bc8 $11 {remains equal.}) 26. Nd7 $16 {[%emt 0:02:41]} Rf7 {[%emt 0:00:04]} 27. Nc5 {[%emt 0:00:21]} Bc6 {[%emt 0:01:12]} 28. e4 {[%emt 0:00:20]} ({White should play} 28. Rh3 $16) 28... f5 {[%emt 0:02:07]} (28... Rc8 $14) 29. exd5 {[%emt 0:06:27]} (29. e5 $16) 29... Bxd5 $11 {[%emt 0:00:05]} 30. Re3 {[%emt 0:00:11]} Nc6 {[%emt 0:00:25]} 31. Kf2 {[%emt 0:01:52]} Rd8 {[%emt 0:00:56]} ({Much less strong is} 31... Nxd4 32. Rd1 Rc7 33. Rxd4 $16) 32. Rd1 {[%emt 0:01:57]} Rd6 {[%emt 0:01:01]} 33. g3 {[%emt 0:04:07]} Kg7 {[%emt 0:00:42] [#]} (33... h5 $11 {might be stronger.}) 34. Bc2 {[%emt 0:02:34]} (34. Re5 $1 $14) 34... h5 $1 {[%emt 0:01:31]} 35. Ba4 {[%emt 0:01:16][%cal Oe3e5]} (35. Re5 $5) 35... Rc7 {[%emt 0:03:09]} 36. Bc2 {[%emt 0:02:28]} ({White should try} 36. Bxc6 $11 Rcxc6 37. Re7+ Bf7 38. Rde1) 36... Bf7 $15 {[%emt 0:01:51]} 37. d5 {[%emt 0:05:51]} Rxd5 {[%emt 0:03:01]} 38. Rxd5 {[%emt 0:00:59]} Bxd5 {[%emt 0:00:05]} 39. Na4 {[%emt 0:00:45]} (39. Na6 $17 Ra7 40. Nc5) 39... Kf6 {[%emt 0:01:44]} (39... Nd4 $19 40. Bb1 Bg8) 40. Bb1 {[%emt 0:01:15]} (40. Re2 $17) 40... Bf7 {[%emt 0:02:46][%cal Oh5h4]} 41. Bc2 {[%emt 0:06:21]} (41. Re1 $17 {is a better defense.}) 41... Rd7 {[%emt 0:02:18] aiming for ...Rd2+.} 42. Ke1 {[%emt 0:01:01]} h4 {[%emt 0:04:15]} 43. gxh4 $2 {[%emt 0:02:41]} (43. Bd1) 43... Rd4 $19 {[%emt 0:00:49]} 44. Nc5 {[%emt 0:01:44]} Rxf4 {[%emt 0:03:11]} 45. Nd7+ {[%emt 0:02:54]} Kg7 {[%emt 0:00:05]} 46. Rh3 {[%emt 0:00:38]} Nd4 {[%emt 0:01:39]} 47. Bb1 {[%emt 0:00:29]} (47. Bd1 $142 Re4+ 48. Kf2) 47... Nf3+ {[%emt 0:02:12]} 48. Kd1 {[%emt 0:00:04]} Bh5 {[%emt 0:01:15]} 49. Rg3+ {[%emt 0:00:24]} Kf7 {[%emt 0:00:13]} 50. Kc1 {[%emt 0:00:26]} Nd4 {[%emt 0:00:57] Weighted Error Value: White=0.37/Black=0.18 (very precise)} 0-1

[Event "German Masters 2022"]
[Site "Magdeburg"]
[Date "2022.08.22"]
[Round "7.4"]
[White "Huschenbeth, Niclas"]
[Black "Kölle, Tobias"]
[Result "*"]
[ECO "B90"]
[WhiteElo "2610"]
[BlackElo "2433"]
[Annotator "TA"]
[PlyCount "37"]
[EventDate "2022.08.16"]
[EventType "tourn"]
[EventCountry "GER"]
[SourceTitle "playchess.com"]
[Source "ChessBase"]
[SourceQuality "1"]
[TimeControl "40/5400+30:1800+30"]

{[%evp 11,21,-12,7,0,31,26,30,0,22,23,39,37]} 1. e4 {[%emt 0:00:21]} c5 {[%emt 0:00:07]} 2. Nf3 {[%emt 0:00:13]} d6 {[%emt 0:00:07]} 3. d4 {[%emt 0:00:04]} cxd4 {[%emt 0:00:03]} 4. Nxd4 {[%emt 0:00:05]} Nf6 {[%emt 0:00:05]} 5. Nc3 {[%emt 0:00:05]} a6 {[%emt 0:00:05]} 6. Rg1 {[%emt 0:00:04]} e5 {[%emt 0:00:18]} 7. Nb3 {[%emt 0:00:04] B90: Sicilian Najdorf: Unusual White 6th moves, 6 Be3 Ng4 and 6 Be3 e5.} h5 {[%emt 0:00:03] Prevents g4.} 8. h3 {[%emt 0:00:17]} Be6 {[%emt 0:00:06]} 9. Be3 {[%emt 0:02:00]} h4 {[%emt 0:05:38]} 10. Qd2 {[%emt 0:01:26]} Be7 {[%emt 0:01:15]} 11. O-O-O {[%emt 0:01:59] [#] White took control after the opening.  Weighted Error Value: White=0.05 (flawless) /Black=0.18 (very precise)} {Predecessor:} Nbd7 $146 12. f4 Rc8 13. Kb1 b5 14. Bd3 Bc4 15. g3 hxg3 16. Rxg3 Nh5 17. Rg2 Bxd3 18. cxd3 exf4 19. Bxf4 {1-0 (39) Djokic,M (2194)-Bethke,R (2370) Chess.com INT 2022} *

[Event "German Masters 2022"]
[Site "Magdeburg"]
[Date "2022.08.22"]
[Round "7.4"]
[White "Huschenbeth, Niclas"]
[Black "Koelle, Tobias"]
[Result "0-1"]
[ECO "B90"]
[WhiteElo "2610"]
[BlackElo "2436"]
[Annotator "TA"]
[PlyCount "78"]
[EventDate "2022.08.16"]
[EventType "tourn"]
[EventCountry "GER"]
[SourceTitle "playchess.com"]
[Source "ChessBase"]
[SourceQuality "1"]
[TimeControl "40/5400+30:1800+30"]

{[%evp 11,78,-6,2,0,17,17,17,0,21,28,37,30,41,15,24,0,4,5,63,50,96,66,63,70,64,57,64,60,58,56,114,118,112,98,102,116,83,96,123,124,127,124,162,153,159,166,156,158,176,156,147,0,173,38,60,-288,-288,-493,-526,-501,-522,-529,-522,-519,-514,-521,-511,-493,-488]} 1. e4 {[%emt 0:00:21]} c5 {[%emt 0:00:07]} 2. Nf3 {[%emt 0:00:13]} d6 {[%emt 0:00:07]} 3. d4 {[%emt 0:00:04]} cxd4 {[%emt 0:00:03]} 4. Nxd4 {[%emt 0:00:05]} Nf6 {[%emt 0:00:05]} 5. Nc3 {[%emt 0:00:05]} a6 {[%emt 0:00:05]} 6. Rg1 {[%emt 0:00:04]} e5 {[%emt 0:00:18]} 7. Nb3 {[%emt 0:00:04] B90: Sicilian Najdorf: Unusual White 6th moves, 6 Be3 Ng4 and 6 Be3 e5.} h5 {[%emt 0:00:03] Against g4} 8. h3 {[%emt 0:00:17]} Be6 {[%emt 0:00:06]} 9. Be3 {[%emt 0:02:00] The position is equal.} h4 {[%emt 0:05:38]} 10. Qd2 {[%emt 0:01:26]} Be7 {[%emt 0:01:15]} 11. O-O-O {[%emt 0:01:59]} Nbd7 {[%emt 0:07:24] [#]} 12. Kb1 $146 {[%emt 0:04:16]} ({Predecessor:} 12. f4 Rc8 13. Kb1 b5 14. Bd3 Bc4 15. g3 hxg3 16. Rxg3 Nh5 17. Rg2 Bxd3 18. cxd3 exf4 19. Bxf4 {1-0 (39) Djokic,M (2194)-Bethke,R (2370) Chess.com INT 2022}) 12... b5 {[%emt 0:01:27]} 13. f3 {[%emt 0:10:40]} Nb6 {[%emt 0:21:49]} 14. Qf2 {[%emt 0:04:41]} Nc4 {[%emt 0:05:03]} (14... Rb8 $1 $11) 15. Bxc4 $14 {[%emt 0:00:05]} Bxc4 {[%emt 0:02:32] [#]} (15... bxc4 $14 {is superior.} 16. Nc5 Nh5) 16. Na5 $1 {[%emt 0:09:54]} Qxa5 {[%emt 0:19:51]} 17. Bb6 {[%emt 0:00:09]} Bxa2+ {[%emt 0:02:25]} 18. Nxa2 {[%emt 0:00:06]} Qa4 {[%emt 0:00:03]} 19. b3 $36 {[%emt 0:00:40][%mdl 2048] Black is under pressure.} Qa3 {[%emt 0:02:52]} 20. b4 $1 {[%emt 0:03:04] aiming for Rd3.} a5 {[%emt 0:00:39]} ({Black should play} 20... d5 $14) 21. Rd3 $16 {[%emt 0:01:42]} ({Much weaker is} 21. bxa5 $6 Nd7 22. Rd3 Qa4 $15) 21... Qa4 {[%emt 0:00:09]} 22. Bxa5 {[%emt 0:00:54]} Rxa5 {[%emt 0:02:22]} 23. bxa5 {[%emt 0:00:05]} Qxa5 {[%emt 0:00:53]} 24. Qd2 {[%emt 0:10:25]} Qa8 {[%emt 0:08:04]} 25. Nb4 {[%emt 0:05:19]} O-O {[%emt 0:01:44][%cal Od6d5] [#]} 26. Kb2 $1 {[%emt 0:00:35] And now Ra1 would win.} Nd7 {[%emt 0:02:49][%cal Bf6d7,Bd7c5,Bc5a4,Ba4b6,Bb6d5,Bd5b4][%mdl 32] White must now prevent ...Nb6.} 27. Ra3 {[%emt 0:11:36]} Qe8 {[%emt 0:04:36]} 28. Nd5 {[%emt 0:02:37] Inhibits Nb6. Threatens to win with Rga1.} Nc5 {[%emt 0:00:41]} 29. Ra7 {[%emt 0:06:03] Prevents Qd7.} Na4+ {[%emt 0:01:17]} 30. Kb1 {[%emt 0:02:01]} Bd8 {[%emt 0:00:36]} 31. Qb4 {[%emt 0:10:53]} (31. Ra6 $16) 31... Qc6 $2 {[%emt 0:01:14] [#]} (31... Bb6 $11 {and Black stays safe.} 32. Nxb6 Nxb6) 32. c4 {[%emt 0:01:59]} (32. Rd1 $1 $18) 32... Nb6 $14 {[%emt 0:00:25] Strongly threatening ...Nxd5.} 33. Ra6 $2 {[%emt 0:05:50][%mdl 8192] This move loses the game for White.} (33. cxb5 $14 {stays ahead.} Nxd5 34. bxc6 Nxb4 35. c7 Bxc7 36. Rxc7) 33... Nxd5 $19 {[%emt 0:00:12][%mdl 64] Discovered Attack} 34. Rxc6 {[%emt 0:03:53]} (34. Qxb5 {only move.} Nc3+ 35. Kb2 Qxb5+ 36. cxb5 Nxb5 37. Rga1) 34... Nxb4 {[%emt 0:00:06] Black is clearly winning.} 35. Rxd6 {[%emt 0:00:03]} bxc4 {[%emt 0:00:19]} 36. Rc1 {[%emt 0:00:15]} Bg5 {[%emt 0:02:48]} 37. Rxc4 {[%emt 0:00:03]} Rb8 {[%emt 0:00:08]} 38. Kb2 {[%emt 0:02:48]} Nd5+ {[%emt 0:00:37]} 39. Ka2 {[%emt 0:00:15]} Ne3 {[%emt 0:00:22][%csl LRc4,LRg2] Weighted Error Value: White=0.31/Black=0.20 (precise)} 0-1

[Event "German Masters 2022"]
[Site "Magdeburg"]
[Date "2022.08.22"]
[Round "7.5"]
[White "Svane, Rasmus"]
[Black "Rosner, Jonas"]
[Result "1-0"]
[ECO "B15"]
[WhiteElo "2649"]
[BlackElo "2478"]
[Annotator "TA"]
[PlyCount "53"]
[EventDate "2022.08.16"]
[EventType "tourn"]
[EventCountry "GER"]
[SourceTitle "playchess.com"]
[Source "ChessBase"]
[SourceQuality "1"]
[TimeControl "40/5400+30:1800+30"]

{[%evp 10,53,27,8,12,16,26,10,23,16,23,20,22,9,39,26,61,64,58,63,75,62,83,45,120,110,136,150,240,233,234,227,850,820,1335,1331,1260,1234,29986,29987,29995,29996,29996,29997,29997,29998]} 1. e4 {[%emt 0:00:47]} c6 {[%emt 0:00:07]} 2. d4 {[%emt 0:00:18]} d5 {[%emt 0:00:07]} 3. Nc3 {[%emt 0:00:12]} dxe4 {[%emt 0:00:10]} 4. Nxe4 {[%emt 0:00:05]} Nf6 {[%emt 0:00:57]} 5. Nxf6+ {[%emt 0:00:19]} exf6 {[%emt 0:00:07]} 6. Be3 {[%emt 0:00:09]} Bd6 {[%emt 0:01:24] B15: Caro-Kann: 3 Nc3: 3...g6 and 3...dxe4 4 Nxe4 Nf6 5 Nxf6+ exf6.} 7. Bd3 {[%emt 0:00:06]} O-O {[%emt 0:01:23]} 8. Ne2 {[%emt 0:00:11]} Re8 {[%emt 0:02:02] The position is equal.} 9. O-O {[%emt 0:01:31]} Nd7 {[%emt 0:01:23]} 10. c4 {[%emt 0:00:06]} Nf8 {[%emt 0:04:31]} 11. Qc2 {[%emt 0:00:20] [#]} h5 $146 {[%emt 0:03:20]} ({Predecessor:} 11... Qc7 12. h3 Be6 13. Rac1 Ng6 14. Qb1 Qd7 15. b4 Bxh3 16. gxh3 Qxh3 17. Rfd1 Nh4 {0-1 (35) Kamer,K (2325)-Babiy,O (2256) Chess.com INT 2020}) 12. Rad1 {[%emt 0:13:03]} h4 {[%emt 0:04:45]} 13. h3 $1 {[%emt 0:00:20]} Bc7 {[%emt 0:05:32]} 14. Rfe1 {[%emt 0:04:59]} Bd7 {[%emt 0:22:20]} 15. Nc3 {[%emt 0:04:22]} Qc8 {[%emt 0:04:56]} 16. Be4 {[%emt 0:24:02][%cal Bd3e4,Be4h7,Bh7f5][%mdl 32]} Ne6 {[%emt 0:16:55]} ({Black should try} 16... f5 $14 17. Bf3 f4) 17. d5 $16 {[%emt 0:09:38] White is more active.} cxd5 {[%emt 0:02:58]} 18. Nxd5 {[%emt 0:10:16]} Bc6 {[%emt 0:02:50] [#]} (18... Nf8 $16 {was worth a try.} 19. Bd2 Be6) 19. Bh7+ $1 $18 {[%emt 0:02:53]} Kh8 {[%emt 0:05:16]} 20. Bf5 {[%emt 0:01:57][%cal Od5f6] Strongly threatening Nxf6!} Bd8 {[%emt 0:04:00]} (20... Qb8 21. Qe2 g6) 21. Qe4 {[%emt 0:03:10]} g5 {[%emt 0:00:37]} 22. Qg4 {[%emt 0:01:08] Qh5+ would kill now.} Kg7 {[%emt 0:00:32]} 23. Bd4 {[%emt 0:02:33][%cal Oe1e6] [#] Threatening mate with Rxe6!} Rg8 {[%emt 0:11:49]} 24. Rxe6 {[%emt 0:01:01] White mates.} fxe6 {[%emt 0:00:10]} 25. Qxg5+ {[%emt 0:00:50]} Kf7 {[%emt 0:00:38]} 26. Qh5+ {[%emt 0:00:12]} Kf8 {[%emt 0:00:22]} 27. Bc5+ {[%emt 0:00:07] Weighted Error Value: White=0.04 (flawless) /Black=0.60} 1-0

[Event "German Masters 2022"]
[Site "Magdeburg"]
[Date "2022.08.23"]
[Round "8.1"]
[White "Keymer, Vincent"]
[Black "Rosner, Jonas"]
[Result "1-0"]
[ECO "A11"]
[WhiteElo "2686"]
[BlackElo "2478"]
[Annotator "TA"]
[PlyCount "71"]
[EventDate "2022.08.16"]
[EventType "tourn"]
[EventCountry "GER"]
[SourceTitle "playchess.com"]
[Source "ChessBase"]
[SourceQuality "1"]
[TimeControl "40/5400+30:1800+30"]

{[%evp 12,71,0,0,7,4,6,0,0,5,10,0,7,6,0,0,11,3,0,0,0,0,0,0,50,55,60,25,33,32,45,43,48,50,44,50,54,56,203,217,206,211,192,130,175,130,139,121,88,81,327,315,582,217,582,561,636,610,29963,29961,4894,2428]} 1. c4 {[%emt 0:00:04]} c6 {[%emt 0:00:18]} 2. Nf3 {[%emt 0:00:04]} d5 {[%emt 0:00:07]} 3. e3 {[%emt 0:00:03]} Nf6 {[%emt 0:00:24]} 4. Nc3 {[%emt 0:00:04]} e6 {[%emt 0:00:14]} 5. b3 {[%emt 0:00:16]} Bd6 {[%emt 0:00:28]} 6. Bb2 {[%emt 0:00:04]} O-O {[%emt 0:00:19]} 7. Be2 {[%emt 0:00:03][%cal Bf1e2,Be2d3,Bd3e4][%mdl 32]} b6 {[%emt 0:01:02] Recently 7...e5 got a lot of attention. A11: English Opening: 1...c6.} 8. O-O {[%emt 0:00:56]} Bb7 {[%emt 0:00:25]} 9. d4 {[%emt 0:00:06]} Nbd7 {[%emt 0:00:22] The position is equal.} 10. a4 {[%emt 0:00:10]} a5 {[%emt 0:01:50]} 11. Bd3 {[%emt 0:02:13]} Qe7 {[%emt 0:01:34]} 12. Rc1 {[%emt 0:14:05]} Rac8 {[%emt 0:07:26] [#]} 13. Re1 $146 {[%emt 0:04:14]} ({Predecessor:} 13. Qe2 Rfe8 14. Rfd1 e5 15. dxe5 Nxe5 16. cxd5 Nxf3+ 17. Qxf3 cxd5 18. Qf5 Qe5 19. Qxe5 Bxe5 {½-½ (28) Gatterer,F (2359)-Maliszewski,G (2351) ICCF email 2018}) 13... Rfd8 {[%emt 0:10:57]} 14. e4 {[%emt 0:09:25]} dxe4 {[%emt 0:02:34]} 15. Nxe4 {[%emt 0:00:35]} Nxe4 {[%emt 0:06:38]} 16. Bxe4 {[%emt 0:00:56]} Nf6 {[%emt 0:01:32]} 17. Qc2 {[%emt 0:04:39]} Ba3 {[%emt 0:07:59]} (17... Bb4 $11) 18. Bxa3 $14 {[%emt 0:14:19]} Qxa3 {[%emt 0:00:04]} 19. c5 {[%emt 0:00:05]} (19. b4 $5) 19... bxc5 {[%emt 0:05:18]} 20. dxc5 {[%emt 0:05:56][%cal Oe4h7,Bd4c5,Bc5c6][%mdl 32]} Ba6 {[%emt 0:06:18]} 21. Ne5 {[%emt 0:03:08] aiming for Ra1.} Nxe4 {[%emt 0:02:37]} 22. Qxe4 {[%emt 0:01:15][%cal Oe5f7] Hoping for Nxf7!} Qxb3 {[%emt 0:02:26]} 23. Nxc6 {[%emt 0:00:13]} Rd7 {[%emt 0:15:00]} 24. Nxa5 {[%emt 0:00:50]} Qd5 {[%emt 0:01:37]} (24... Qb2 $14) 25. c6 $18 {[%emt 0:02:33]} Rd6 {[%emt 0:03:38] [#]} 26. Qb4 {[%emt 0:01:08] Black must now prevent Qb6.} Qd4 {[%emt 0:05:37]} 27. Qb3 {[%emt 0:04:02]} (27. Re4 $18 Qd3 28. h3 (28. c7 Rxc7 29. Qb8+ Rc8 $14)) 27... Qa7 {[%emt 0:04:34]} 28. h3 {[%emt 0:06:28]} Rd5 {[%emt 0:02:10]} 29. Nb7 {[%emt 0:04:18]} (29. Nc4 $6 Rxc6 30. Ne3 Rdc5 $11) 29... h6 {[%emt 0:01:35]} 30. Qb4 {[%emt 0:04:24] Against Rd2. White is more active.} Rb8 $2 {[%emt 0:02:54]} (30... Qd4 $16 31. Re4 Qa7) 31. Rb1 {[%emt 0:01:45]} ({Stronger than} 31. c7 Rc8 32. Nc5 Rxc7 33. Nxa6 Rxc1 34. Rxc1 Qxa6 $11) 31... Bxb7 $2 {[%emt 0:02:09]} (31... Bd3) 32. Qb6 $2 {[%emt 0:05:28]} ({Weaker is} 32. cxb7 Rd7 $11) (32. Rec1) 32... Qxa4 $2 {[%emt 0:02:38]} (32... Qxb6 33. Rxb6 Bxc6 34. Rxb8+ Kh7) 33. c7 {[%emt 0:01:40][%mdl 64] Deflection} ({Less strong is} 33. cxb7 Rd7 $16) 33... Rc8 {[%emt 0:01:33] Threatens to win with ...Bc6.} 34. Qxb7 {[%emt 0:00:06]} Qd7 {[%emt 0:01:29] [#]} 35. Qxc8+ {[%emt 0:00:14][%mdl 512]} Qxc8 {[%emt 0:00:01]} 36. Rb8 {[%emt 0:00:06] Weighted Error Value: White=0.21 (precise) /Black=0.80} 1-0